[Event "WALTON 1st Div Women League 2023"]
[Site "Dhaka"]
[Date "2023.03.25"]
[Round "4.14"]
[White "Essaba, Masnun"]
[Black "Sharmin, Khan"]
[Result "1-0"]
[ECO "B23"]
[WhiteElo "1325"]
[BlackElo "1290"]
[Annotator "NA RC COMBH"]
[PlyCount "139"]
[EventDate "2023.03.22"]
[EventType "team-tourn"]
[EventCountry "BAN"]
[SourceTitle "playchess.com"]
[Source "ChessBase"]
[SourceQuality "1"]
[TimeControl "5400+30"]

1. e4 {[%emt 0:00:04]} c5 {[%emt 0:00:07]} 2. Nc3 {[%emt 0:00:18]} Nc6 {[%emt 0:00:14]} 3. f4 {[%emt 0:00:45]} e6 {[%emt 0:00:53]} 4. Nf3 {[%emt 0:00:18]} d6 {[%emt 0:01:38]} 5. Bb5 {[%emt 0:00:49]} Bd7 {[%emt 0:01:09]} 6. O-O {[%emt 0:01:55]} Nge7 {[%emt 0:01:49]} 7. d3 {[%emt 0:01:08]} a6 {[%emt 0:00:57]} 8. Ba4 {[%emt 0:02:12]} Ng6 {[%emt 0:00:56]} 9. Qe1 {[%emt 0:05:10]} Be7 {[%emt 0:01:27]} 10. e5 {[%emt 0:01:36]} O-O {[%emt 0:01:24]} 11. exd6 {[%emt 0:05:29]} Bxd6 {[%emt 0:00:46]} 12. g3 {[%emt 0:02:39]} Nd4 {[%emt 0:01:39]} 13. Nxd4 {[%emt 0:00:57]} cxd4 {[%emt 0:00:32]} 14. Bxd7 {[%emt 0:00:22]} Qxd7 {[%emt 0:00:18]} 15. Ne4 {[%emt 0:00:19]} Rac8 {[%emt 0:02:44]} 16. Qe2 {[%emt 0:03:58]} Rfe8 {[%emt 0:05:59]} 17. Nxd6 {[%emt 0:01:27]} Qxd6 {[%emt 0:00:39]} 18. b3 {[%emt 0:02:59]} Re7 {[%emt 0:04:13]} 19. Bb2 {[%emt 0:01:31]} f5 {[%emt 0:04:31]} 20. Qf2 {[%emt 0:01:39]} Rec7 {[%emt 0:03:10]} 21. Rac1 {[%emt 0:00:23]} Ne7 {[%emt 0:01:50]} 22. Bxd4 {[%emt 0:00:59]} Nc6 {[%emt 0:00:54]} 23. Bb2 {[%emt 0:00:36]} Nb4 {[%emt 1:04:11]} 24. Be5 {[%emt 1:04:57]} Qd5 {[%emt 0:00:00]} 25. Bxc7 {[%emt 0:00:00]} Rxc7 {[%emt 0:00:00]} 26. a3 {[%emt 0:00:00]} Na2 {[%emt 0:00:00]} 27. Rce1 {[%emt 0:00:00]} Re7 {[%emt 0:00:00]} 28. Re5 {[%emt 0:00:00]} Qd6 {[%emt 0:00:00]} 29. Rfe1 {[%emt 0:00:00]} Nc3 {[%emt 0:00:00]} 30. Qc5 {[%emt 0:00:00]} Qxc5+ {[%emt 0:00:00]} 31. Rxc5 {[%emt 0:00:00]} Nb5 {[%emt 0:00:00]} 32. a4 {[%emt 0:00:00]} Nc7 {[%emt 0:00:00]} 33. d4 {[%emt 0:00:00]} Kf7 {[%emt 0:00:00]} 34. d5 {[%emt 0:00:00]} Nxd5 {[%emt 0:00:00]} 35. Kf2 {[%emt 0:00:00]} Kf6 {[%emt 0:00:00]} 36. h4 {[%emt 0:00:00]} h5 {[%emt 0:00:00]} 37. a5 {[%emt 0:00:00]} Rc7 {[%emt 0:00:00]} 38. Rxc7 {[%emt 0:00:00]} Nxc7 {[%emt 0:00:00]} 39. Ke3 {[%emt 0:00:00]} Nd5+ {[%emt 0:00:00]} 40. Kd4 {[%emt 0:00:00]} Nb4 {[%emt 0:00:00]} 41. Kc3 {[%emt 0:00:00]} Nd5+ {[%emt 0:00:00]} 42. Kc4 {[%emt 0:00:00]} Ke7 {[%emt 0:00:00]} 43. Kc5 {[%emt 0:00:00]} Nf6 {[%emt 0:00:00]} 44. Kb6 {[%emt 0:00:00]} Ne4 {[%emt 0:00:00]} 45. Re3 {[%emt 0:00:00]} Nd6 {[%emt 0:00:00]} 46. Rc3 {[%emt 0:00:00]} Kf6 {[%emt 0:00:00]} 47. Rc7 {[%emt 0:00:00]} Ne8 {[%emt 0:00:00]} 48. Rxb7 {[%emt 0:00:00]} e5 {[%emt 0:00:00]} 49. fxe5+ {[%emt 0:00:00]} Kxe5 {[%emt 0:00:00]} 50. Re7+ {[%emt 0:00:00]} Kf6 {[%emt 0:00:00]} 51. Rxe8 {[%emt 0:00:00]} Kf7 {[%emt 0:00:00]} 52. Re2 {[%emt 0:00:00]} Kf6 {[%emt 0:00:00]} 53. c4 {[%emt 0:00:00]} g5 {[%emt 0:00:00]} 54. hxg5+ {[%emt 0:00:00]} Kxg5 {[%emt 0:00:00]} 55. c5 {[%emt 0:00:00]} Kg4 {[%emt 0:00:00]} 56. Re3 {[%emt 0:00:00]} f4 {[%emt 0:00:00]} 57. gxf4 {[%emt 0:00:00]} Kxf4 {[%emt 0:00:00]} 58. Rh3 {[%emt 0:00:00]} Kg4 {[%emt 0:00:00]} 59. Rxh5 {[%emt 0:00:00]} Kxh5 {[%emt 0:00:00]} 60. c6 {[%emt 0:00:00]} Kg5 {[%emt 0:00:00]} 61. c7 {[%emt 0:00:00]} Kf5 {[%emt 0:00:00]} 62. c8=Q+ {[%emt 0:00:00]} Ke5 {[%emt 0:00:00]} 63. Qxa6 {[%emt 0:00:00]} Kd4 {[%emt 0:00:00]} 64. Qc4+ {[%emt 0:00:00]} Ke5 {[%emt 0:00:00]} 65. a6 {[%emt 0:00:00]} Kd6 {[%emt 0:00:00]} 66. a7 {[%emt 0:00:00]} Ke5 {[%emt 0:00:00]} 67. a8=Q {[%emt 0:00:00]} Kf5 {[%emt 0:00:00]} 68. Qae4+ {[%emt 0:00:00]} Kg5 {[%emt 0:00:00]} 69. Qf7 {[%emt 0:00:00]} Kh6 {[%emt 0:00:00]} 70. Qfg6# {[%emt 0:00:00]} 1-0

[Event "WALTON 1st Div Women League 2023"]
[Site "Dhaka"]
[Date "2023.03.25"]
[Round "4.15"]
[White "Mahjabeen, Islam"]
[Black "Warisa Haider"]
[Result "1-0"]
[ECO "C50"]
[WhiteElo "1180"]
[BlackElo "1302"]
[Annotator "NA RC COMBH"]
[PlyCount "87"]
[EventDate "2023.03.22"]
[EventType "team-tourn"]
[EventCountry "BAN"]
[SourceTitle "playchess.com"]
[Source "ChessBase"]
[SourceQuality "1"]
[TimeControl "5400+30"]

1. e4 {[%emt 0:00:03]} e5 {[%emt 0:14:28]} 2. Nf3 {[%emt 0:00:06]} Nc6 {[%emt 0:00:11]} 3. Bc4 {[%emt 0:00:14]} Bc5 {[%emt 0:00:06]} 4. Nc3 {[%emt 0:00:15]} Nf6 {[%emt 0:00:23]} 5. d3 {[%emt 0:00:19]} d6 {[%emt 0:00:35]} 6. Be3 {[%emt 0:00:18]} Bb6 {[%emt 0:01:07]} 7. Qe2 {[%emt 0:01:45]} Be6 {[%emt 0:01:33]} 8. h3 {[%emt 0:09:03]} Bxc4 {[%emt 0:02:03]} 9. dxc4 {[%emt 0:00:13]} Bxe3 {[%emt 0:03:12]} 10. Qxe3 {[%emt 0:00:22]} Qd7 {[%emt 0:01:01]} 11. b3 {[%emt 0:01:14]} Nb4 {[%emt 0:04:47]} 12. Qe2 {[%emt 0:02:14]} O-O {[%emt 0:01:41]} 13. a3 {[%emt 0:01:14]} Nc6 {[%emt 0:01:09]} 14. Nd5 {[%emt 0:00:40]} Nxd5 {[%emt 0:06:33]} 15. cxd5 {[%emt 0:00:27]} Ne7 {[%emt 0:02:10]} 16. c4 {[%emt 0:03:28]} c6 {[%emt 0:04:03]} 17. O-O {[%emt 0:08:38]} cxd5 {[%emt 0:03:32]} 18. cxd5 {[%emt 0:00:57]} f5 {[%emt 0:01:02]} 19. Ng5 {[%emt 0:13:14]} Ng6 {[%emt 0:04:01]} 20. Qh5 {[%emt 0:06:34]} h6 {[%emt 0:01:55]} 21. Ne6 {[%emt 0:00:14]} Rf6 {[%emt 0:02:38]} 22. exf5 {[%emt 0:02:01]} Nf8 {[%emt 0:02:27]} 23. g4 {[%emt 0:01:31]} Rc8 {[%emt 0:06:11]} 24. f4 {[%emt 0:06:15]} Qb5 {[%emt 0:02:40]} 25. fxe5 {[%emt 0:41:41]} dxe5 {[%emt 0:04:12]} 26. g5 {[%emt 0:00:00]} hxg5 {[%emt 0:05:00]} 27. Qxg5 {[%emt 0:00:00]} Nxe6 {[%emt 0:09:30]} 28. dxe6 {[%emt 0:00:00]} Qb6+ {[%emt 0:02:09]} 29. Kh1 {[%emt 0:00:00]} Qc6+ {[%emt 0:02:21]} 30. Qg2 {[%emt 0:00:00]} Qxg2+ {[%emt 0:00:22]} 31. Kxg2 {[%emt 0:00:00]} Rcf8 {[%emt 0:00:05]} 32. Kg3 {[%emt 0:00:00]} Rxf5 {[%emt 0:00:19]} 33. Rxf5 {[%emt 0:00:00]} Rxf5 {[%emt 0:00:15]} 34. Rd1 {[%emt 0:00:00]} Rf6 {[%emt 0:04:36]} 35. Rd8+ {[%emt 0:00:00]} Rf8 {[%emt 0:01:07]} 36. e7 {[%emt 0:00:00]} Rxd8 {[%emt 0:05:11]} 37. exd8=Q+ {[%emt 0:00:00]} Kh7 {[%emt 0:00:08]} 38. Qg5 {[%emt 0:00:00]} e4 {[%emt 0:00:36]} 39. Kg4 {[%emt 0:00:00]} Kh8 {[%emt 0:01:10]} 40. Kf5 {[%emt 0:00:00]} Kg8 {[%emt 0:00:23]} 41. Qe7 {[%emt 0:00:00]} Kh7 {[%emt 0:00:20]} 42. Kg5 {[%emt 0:00:00]} Kh8 {[%emt 0:00:21]} 43. Kg6 {[%emt 0:00:00]} Kg8 {[%emt 0:00:06]} 44. Qxg7# {[%emt 0:00:00]} 1-0

[Event "WALTON 1st Div Women League 2023"]
[Site "Dhaka"]
[Date "2023.03.26"]
[Round "5.1"]
[White "Nazmin, Akter"]
[Black "Rashma, Alam"]
[Result "1-0"]
[ECO "D02"]
[WhiteElo "1258"]
[BlackElo "1047"]
[Annotator "NA RC COMBH"]
[PlyCount "85"]
[EventDate "2023.03.22"]
[EventType "team-tourn"]
[EventCountry "BAN"]
[SourceTitle "playchess.com"]
[Source "ChessBase"]
[SourceQuality "1"]
[TimeControl "5400+30"]

1. d4 {[%emt 0:00:06]} d5 {[%emt 0:05:50]} 2. Nf3 {[%emt 0:00:13]} e6 {[%emt 0:00:10]} 3. g3 {[%emt 0:00:32]} Nc6 {[%emt 0:01:06]} 4. Bg2 {[%emt 0:00:58]} g6 {[%emt 0:00:18]} 5. c3 {[%emt 0:00:43]} Nf6 {[%emt 0:00:32]} 6. Bg5 {[%emt 0:01:15]} Bg7 {[%emt 0:00:42]} 7. Ne5 {[%emt 1:30:13]} Nxe5 {[%emt 0:05:50]} 8. dxe5 {[%emt 0:00:00]} h6 {[%emt 0:02:33]} 9. Bxf6 {[%emt 0:00:00]} Bxf6 {[%emt 0:00:33]} 10. exf6 {[%emt 0:00:00]} Qxf6 {[%emt 0:00:29]} 11. Nd2 {[%emt 0:00:00]} b6 {[%emt 0:00:59]} 12. Nf3 {[%emt 0:00:00]} Bb7 {[%emt 0:00:42]} 13. Nd4 {[%emt 0:00:00]} a6 {[%emt 0:06:59]} 14. a4 {[%emt 0:00:00]} h5 {[%emt 0:04:28]} 15. Nf3 {[%emt 0:00:00]} g5 {[%emt 0:02:00]} 16. Qd4 {[%emt 0:00:00]} Qh6 {[%emt 0:10:26]} 17. Qe5 {[%emt 0:00:00]} O-O-O {[%emt 0:04:26]} 18. Nxg5 {[%emt 0:00:00]} Qg6 {[%emt 0:02:08]} 19. h4 {[%emt 0:00:00]} f6 {[%emt 0:00:36]} 20. Qxe6+ {[%emt 0:00:00]} Kb8 {[%emt 0:00:48]} 21. Nf3 {[%emt 0:00:00]} Rhe8 {[%emt 0:01:04]} 22. Qh3 {[%emt 0:00:00]} Qc2 {[%emt 0:01:35]} 23. O-O {[%emt 0:00:00]} Rxe2 {[%emt 0:00:50]} 24. Nd4 {[%emt 0:00:00]} Qxb2 {[%emt 0:00:46]} 25. Nxe2 {[%emt 0:00:00]} Qxe2 {[%emt 0:00:28]} 26. Qf5 {[%emt 0:00:00]} Rd6 {[%emt 0:05:04]} 27. Rfe1 {[%emt 0:00:00]} Qc4 {[%emt 0:00:39]} 28. Rec1 {[%emt 0:00:00]} a5 {[%emt 0:00:48]} 29. Qxh5 {[%emt 0:00:00]} Ka7 {[%emt 0:03:05]} 30. Bf1 {[%emt 0:00:00]} Qc5 {[%emt 0:00:51]} 31. c4 {[%emt 0:00:00]} Qd4 {[%emt 0:04:11]} 32. cxd5 {[%emt 0:00:00]} Bxd5 {[%emt 0:00:29]} 33. Rxc7+ {[%emt 0:00:00]} Kb8 {[%emt 0:00:26]} 34. Rac1 {[%emt 0:00:00]} Bc6 {[%emt 0:01:49]} 35. Qf7 {[%emt 0:14:00]} Rd7 {[%emt 0:01:02]} 36. Rxd7 {[%emt 0:00:00]} Bxd7 {[%emt 0:00:42]} 37. Qc4 {[%emt 0:00:00]} Qd6 {[%emt 0:02:02]} 38. Qc2 {[%emt 0:00:00]} f5 {[%emt 0:01:01]} 39. Rd1 {[%emt 0:00:00]} Qe6 {[%emt 0:02:07]} 40. Bg2 {[%emt 0:00:00]} Qf7 {[%emt 0:04:21]} 41. Rd6 {[%emt 0:00:00]} b5 {[%emt 0:10:56]} 42. Rb6+ {[%emt 0:00:00]} Ka7 {[%emt 0:01:25]} 43. Qc7# {[%emt 0:00:00]} 1-0

[Event "WALTON 1st Div Women League 2023"]
[Site "Dhaka"]
[Date "2023.03.26"]
[Round "5.2"]
[White "Sanjeedah, Khanam Mitul"]
[Black "Essaba, Masnun"]
[Result "0-1"]
[ECO "B10"]
[WhiteElo "1165"]
[BlackElo "1325"]
[Annotator "NA RC COMBH"]
[PlyCount "136"]
[EventDate "2023.03.22"]
[EventType "team-tourn"]
[EventCountry "BAN"]
[SourceTitle "playchess.com"]
[Source "ChessBase"]
[SourceQuality "1"]
[TimeControl "5400+30"]

1. e4 {[%emt 1:31:00]} c6 {[%emt 1:31:00]} 2. Bc4 {[%emt 0:00:30]} d5 {[%emt 0:00:30]} 3. exd5 {[%emt 0:00:30]} cxd5 {[%emt 0:00:30]} 4. Bb5+ {[%emt 0:00:30]} Nc6 {[%emt 0:00:30]} 5. Nf3 {[%emt 0:00:30]} a6 {[%emt 0:00:30]} 6. Ba4 {[%emt 0:00:30]} b5 {[%emt 0:00:30]} 7. Bb3 {[%emt 0:00:30]} Bf5 {[%emt 0:00:30]} 8. d3 {[%emt 0:00:30]} e6 {[%emt 0:00:30]} 9. O-O {[%emt 0:00:30]} Nf6 {[%emt 0:00:30]} 10. Re1 {[%emt 0:00:30]} Be7 {[%emt 0:00:30]} 11. Ne5 {[%emt 0:00:30]} Nxe5 {[%emt 0:00:30]} 12. Rxe5 {[%emt 0:00:30]} O-O {[%emt 0:00:30]} 13. Qf3 {[%emt 0:00:30]} Bg6 {[%emt 0:00:30]} 14. Bg5 {[%emt 0:00:30]} h6 {[%emt 0:00:30]} 15. Qh3 {[%emt 0:00:30]} hxg5 {[%emt 0:00:30]} 16. Rxg5 {[%emt 0:00:30]} Nh7 {[%emt 0:00:30]} 17. Rg3 {[%emt 0:00:30]} Ng5 {[%emt 0:00:30]} 18. Qg4 {[%emt 0:00:30]} f5 {[%emt 0:00:30]} 19. Qe2 {[%emt 0:00:30]} Bf7 {[%emt 0:00:30]} 20. h4 {[%emt 0:00:30]} Nh7 {[%emt 0:00:30]} 21. Qe5 {[%emt 0:00:30]} Bf6 {[%emt 0:00:30]} 22. Qf4 {[%emt 0:00:30]} Bxh4 {[%emt 0:00:30]} 23. Rh3 {[%emt 0:00:30]} Bf6 {[%emt 0:00:30]} 24. c3 {[%emt 0:00:30]} Bg6 {[%emt 0:00:30]} 25. Nd2 {[%emt 0:00:30]} Bg5 {[%emt 0:00:30]} 26. Qe5 {[%emt 0:00:30]} Bf6 {[%emt 0:00:30]} 27. Qh2 {[%emt 0:00:30]} Kf7 {[%emt 0:00:30]} 28. g3 {[%emt 0:00:30]} Rh8 {[%emt 0:00:30]} 29. Qg2 {[%emt 0:00:30]} Rc8 {[%emt 0:00:30]} 30. Re1 {[%emt 0:00:30]} Re8 {[%emt 0:00:30]} 31. g4 {[%emt 0:00:30]} fxg4 {[%emt 0:00:30]} 32. Qxg4 {[%emt 0:00:30]} Bf5 {[%emt 0:00:30]} 33. Qh5+ {[%emt 0:00:30]} Bg6 {[%emt 0:00:30]} 34. Qf3 {[%emt 0:00:30]} Ng5 {[%emt 0:00:30]} 35. Qg3 {[%emt 0:00:30]} Nxh3+ {[%emt 0:00:30]} 36. Qxh3 {[%emt 0:00:30]} Qd6 {[%emt 0:00:30]} 37. Qe3 {[%emt 0:00:30]} Bf5 {[%emt 0:00:30]} 38. Qa7+ {[%emt 0:00:30]} Re7 {[%emt 0:00:30]} 39. Qe3 {[%emt 0:00:30]} Rh8 {[%emt 0:00:30]} 40. Kf1 {[%emt 0:00:30]} Rh1+ {[%emt 0:00:30]} 41. Ke2 {[%emt 0:00:30]} Rxe1+ {[%emt 0:00:30]} 42. Kxe1 {[%emt 0:00:30]} Qe5 {[%emt 0:00:30]} 43. Nf3 {[%emt 0:00:30]} Qxe3+ {[%emt 0:00:30]} 44. fxe3 {[%emt 0:00:30]} Bxd3 {[%emt 0:00:30]} 45. Kd2 {[%emt 0:00:30]} Bg6 {[%emt 0:00:30]} 46. a4 {[%emt 0:00:30]} bxa4 {[%emt 0:00:30]} 47. Bxa4 {[%emt 0:00:30]} Rb7 {[%emt 0:00:30]} 48. b4 {[%emt 0:00:30]} Ke7 {[%emt 0:00:30]} 49. Bc6 {[%emt 0:00:30]} Rb6 {[%emt 0:00:30]} 50. Ba4 {[%emt 0:00:30]} Be8 {[%emt 0:00:30]} 51. Bc2 {[%emt 0:00:30]} Rc6 {[%emt 0:00:30]} 52. Nd4 {[%emt 0:00:30]} Bxd4 {[%emt 0:00:30]} 53. exd4 {[%emt 0:00:30]} Rc7 {[%emt 0:00:30]} 54. Kd3 {[%emt 0:00:30]} Bg6+ {[%emt 0:00:30]} 55. Kd2 {[%emt 0:00:30]} Bxc2 {[%emt 0:00:30]} 56. Kxc2 {[%emt 0:00:30]} g5 {[%emt 0:00:30]} 57. Kb3 {[%emt 0:00:30]} g4 {[%emt 0:00:30]} 58. Ka4 {[%emt 0:00:30]} g3 {[%emt 0:00:30]} 59. Ka5 {[%emt 0:00:30]} Rc6 {[%emt 0:00:30]} 60. b5 {[%emt 0:00:30]} axb5 {[%emt 0:00:30]} 61. Kxb5 {[%emt 0:00:30]} Rxc3 {[%emt 0:00:30]} 62. Kb4 {[%emt 0:00:30]} Rc4+ {[%emt 0:00:30]} 63. Kb3 {[%emt 0:00:30]} g2 {[%emt 0:00:30]} 64. Kb2 {[%emt 0:00:30]} g1=Q {[%emt 0:00:30]} 65. Ka3 {[%emt 0:00:30]} Qa1+ {[%emt 0:00:30]} 66. Kb3 {[%emt 0:00:30]} Qc3+ {[%emt 0:00:30]} 67. Ka2 {[%emt 0:00:30]} Ra4+ {[%emt 0:00:30]} 68. Kb1 {[%emt 0:00:30]} Ra1# {[%emt 0:00:30]} 0-1

[Event "WALTON 1st Div Women League 2023"]
[Site "Dhaka"]
[Date "2023.03.26"]
[Round "5.3"]
[White "Warisa Haider"]
[Black "Monika, Kundu"]
[Result "0-1"]
[ECO "C55"]
[WhiteElo "1302"]
[BlackElo "1333"]
[Annotator "NA RC COMBH"]
[PlyCount "58"]
[EventDate "2023.03.22"]
[EventType "team-tourn"]
[EventCountry "BAN"]
[SourceTitle "playchess.com"]
[Source "ChessBase"]
[SourceQuality "1"]
[TimeControl "5400+30"]

1. e4 {[%emt 0:00:03]} e5 {[%emt 0:00:11]} 2. Nf3 {[%emt 0:00:04]} Nc6 {[%emt 0:00:26]} 3. Bc4 {[%emt 0:00:11]} h6 {[%emt 0:00:34]} 4. O-O {[%emt 0:00:49]} Nf6 {[%emt 0:00:10]} 5. d3 {[%emt 0:03:52]} d6 {[%emt 0:00:20]} 6. h3 {[%emt 0:00:35]} Be6 {[%emt 0:00:18]} 7. Bb3 {[%emt 0:02:20]} Qd7 {[%emt 0:00:51]} 8. Nc3 {[%emt 0:06:32]} O-O-O {[%emt 0:00:42]} 9. Be3 {[%emt 0:02:13]} g5 {[%emt 0:00:34]} 10. Bxe6 {[%emt 0:08:14]} Qxe6 {[%emt 0:00:42]} 11. Nh2 {[%emt 0:02:06]} d5 {[%emt 0:01:28]} 12. exd5 {[%emt 0:01:14]} Nxd5 {[%emt 0:00:14]} 13. Nxd5 {[%emt 0:03:49]} Qxd5 {[%emt 0:00:15]} 14. Qg4+ {[%emt 0:04:32]} Kb8 {[%emt 0:00:32]} 15. a3 {[%emt 0:01:43]} Bd6 {[%emt 0:00:16]} 16. Rad1 {[%emt 0:03:28]} h5 {[%emt 0:00:10]} 17. Qxg5 {[%emt 0:04:16]} Rdg8 {[%emt 0:00:20]} 18. c4 {[%emt 0:00:24]} Qe6 {[%emt 0:01:12]} 19. Qh4 {[%emt 0:06:11]} f5 {[%emt 0:00:51]} 20. Bg5 {[%emt 0:03:07]} Qg6 {[%emt 0:01:43]} 21. c5 {[%emt 0:06:56]} Be7 {[%emt 0:00:30]} 22. Nf3 {[%emt 0:04:40]} Bxg5 {[%emt 0:00:18]} 23. Nxg5 {[%emt 0:00:15]} Qxg5 {[%emt 0:00:10]} 24. Qxg5 {[%emt 0:00:08]} Rxg5 {[%emt 0:00:05]} 25. h4 {[%emt 0:00:28]} Rg4 {[%emt 0:00:44]} 26. g3 {[%emt 0:00:24]} Rhg8 {[%emt 0:00:14]} 27. Kh2 {[%emt 0:00:11]} f4 {[%emt 0:00:32]} 28. Rg1 {[%emt 0:02:18]} Nd4 {[%emt 0:00:17]} 29. Kh3 {[%emt 0:02:04]} Nf5 {[%emt 0:02:32]} 0-1

[Event "WALTON 1st Div Women League 2023"]
[Site "Dhaka"]
[Date "2023.03.26"]
[Round "5.5"]
[White "Nusrat, Jahan Liza"]
[Black "Nargis, Kaumudi"]
[Result "1/2-1/2"]
[ECO "B12"]
[WhiteElo "1573"]
[BlackElo "1253"]
[Annotator "NA RC COMBH"]
[PlyCount "173"]
[EventDate "2023.03.22"]
[EventType "team-tourn"]
[EventCountry "BAN"]
[SourceTitle "playchess.com"]
[Source "ChessBase"]
[SourceQuality "1"]
[TimeControl "5400+30"]

1. e4 {[%emt 0:00:12]} d6 {[%emt 0:11:16]} 2. d4 {[%emt 0:00:06]} c6 {[%emt 0:00:05]} 3. Nf3 {[%emt 0:00:33]} Qc7 {[%emt 0:00:08]} 4. Bf4 {[%emt 0:00:19]} Nd7 {[%emt 0:00:25]} 5. Bc4 {[%emt 0:00:28]} b5 {[%emt 0:00:42]} 6. Bb3 {[%emt 0:00:52]} h6 {[%emt 0:00:47]} 7. O-O {[%emt 0:00:18]} e5 {[%emt 0:00:05]} 8. dxe5 {[%emt 0:02:03]} dxe5 {[%emt 0:00:17]} 9. Bg3 {[%emt 0:00:53]} Ngf6 {[%emt 0:00:08]} 10. Re1 {[%emt 0:01:50]} Bd6 {[%emt 0:00:43]} 11. h3 {[%emt 0:01:03]} Nc5 {[%emt 0:00:13]} 12. Nbd2 {[%emt 0:00:44]} O-O {[%emt 0:00:25]} 13. c3 {[%emt 0:01:19]} Nd3 {[%emt 0:00:19]} 14. Re2 {[%emt 0:02:38]} Nh5 {[%emt 0:00:31]} 15. Nf1 {[%emt 0:05:59]} Ndf4 {[%emt 0:00:13]} 16. Rd2 {[%emt 0:03:50]} Bc5 {[%emt 0:00:40]} 17. Bxf4 {[%emt 0:02:58]} Nxf4 {[%emt 0:00:22]} 18. Ng3 {[%emt 0:02:32]} Bxh3 {[%emt 0:01:03]} 19. gxh3 {[%emt 0:03:54]} Nxh3+ {[%emt 0:00:13]} 20. Kg2 {[%emt 0:02:44]} Nf4+ {[%emt 0:00:22]} 21. Kh2 {[%emt 0:04:57]} Rae8 {[%emt 0:00:17]} 22. Qg1 {[%emt 0:07:48]} Kh7 {[%emt 0:00:46]} 23. Rad1 {[%emt 0:00:30]} Qb6 {[%emt 0:00:35]} 24. Nf5 {[%emt 0:04:29]} g6 {[%emt 0:01:00]} 25. Nd6 {[%emt 0:04:09]} Re7 {[%emt 0:01:35]} 26. Qg3 {[%emt 0:02:10]} f6 {[%emt 0:00:57]} 27. Nh4 {[%emt 0:05:57]} Rg7 {[%emt 0:00:30]} 28. Rg1 {[%emt 0:00:32]} Bxd6 {[%emt 0:01:07]} 29. Rxd6 {[%emt 0:07:50]} Qc7 {[%emt 0:00:50]} 30. Rgd1 {[%emt 0:01:28]} a5 {[%emt 0:00:55]} 31. Ng2 {[%emt 0:00:48]} Nh5 {[%emt 0:01:27]} 32. Qg4 {[%emt 0:00:47]} Qb6 {[%emt 0:00:13]} 33. R1d2 {[%emt 0:04:06]} a4 {[%emt 0:00:33]} 34. Bd5 {[%emt 0:01:53]} f5 {[%emt 0:02:30]} 35. exf5 {[%emt 0:02:00]} Rxf5 {[%emt 0:00:03]} 36. Rxc6 {[%emt 0:00:47]} Qb8 {[%emt 0:00:08]} 37. Be4 {[%emt 0:01:41]} Rg5 {[%emt 0:00:02]} 38. Qe6 {[%emt 0:02:34]} Qf8 {[%emt 0:00:47]} 39. Rc8 {[%emt 0:01:14]} Rxg2+ {[%emt 1:16:48]} 40. Bxg2 {[%emt 0:02:40]} Qf4+ {[%emt 0:00:00]} 41. Kg1 {[%emt 0:03:42]} Qxd2 {[%emt 0:00:00]} 42. Qxe5 {[%emt 0:05:24]} Qd1+ {[%emt 0:00:00]} 43. Kh2 {[%emt 0:00:28]} Qg4 {[%emt 0:00:00]} 44. Qb8 {[%emt 0:01:38]} Qf4+ {[%emt 0:00:00]} 45. Kg1 {[%emt 0:01:31]} Qc1+ {[%emt 0:00:00]} 46. Kh2 {[%emt 0:00:13]} Qf4+ {[%emt 0:00:00]} 47. Qxf4 {[%emt 0:00:38]} Nxf4 {[%emt 0:00:00]} 48. Rb8 {[%emt 0:00:02]} Nd3 {[%emt 0:00:00]} 49. Rxb5 {[%emt 0:00:33]} Nxf2 {[%emt 0:00:00]} 50. c4 {[%emt 0:00:40]} Re7 {[%emt 0:00:00]} 51. c5 {[%emt 0:00:17]} Ng4+ {[%emt 0:00:00]} 52. Kg3 {[%emt 0:01:01]} h5 {[%emt 0:00:00]} 53. Rb7 {[%emt 0:00:21]} Rxb7 {[%emt 0:00:00]} 54. Bxb7 {[%emt 0:00:02]} Nf6 {[%emt 0:00:00]} 55. b4 {[%emt 0:00:46]} axb3 {[%emt 0:00:00]} 56. axb3 {[%emt 0:00:01]} Nd7 {[%emt 0:00:00]} 57. c6 {[%emt 0:01:30]} Nb6 {[%emt 0:00:00]} 58. Ba6 {[%emt 0:01:14]} Na8 {[%emt 0:00:00]} 59. b4 {[%emt 0:00:21]} Nc7 {[%emt 0:00:00]} 60. Bc4 {[%emt 0:06:33]} Kg7 {[%emt 0:10:30]} 61. b5 {[%emt 0:00:00]} Na8 {[%emt 0:00:00]} 62. Bd5 {[%emt 0:00:00]} Nb6 {[%emt 0:00:00]} 63. c7 {[%emt 0:00:00]} Kf8 {[%emt 0:00:00]} 64. Bb7 {[%emt 0:00:00]} Ke7 {[%emt 0:00:00]} 65. c8=Q Nxc8 {[%emt 0:00:00]} 66. Bxc8 {[%emt 0:00:00]} Kd8 {[%emt 0:00:00]} 67. Be6 {[%emt 0:00:00]} g5 {[%emt 0:00:00]} 68. Bf7 {[%emt 0:01:24]} h4+ {[%emt 0:00:00]} 69. Kg4 {[%emt 0:00:57]} Kc7 {[%emt 0:00:00]} 70. Bc4 {[%emt 0:00:52]} Kb6 {[%emt 0:00:00]} 71. Be2 {[%emt 0:00:22]} Kc5 {[%emt 0:00:00]} 72. Bf1 {[%emt 0:00:10]} Kb6 {[%emt 0:00:00]} 73. Kh3 {[%emt 0:00:27]} Kc5 {[%emt 0:00:00]} 74. Bd3 {[%emt 0:00:10]} Kb6 {[%emt 0:00:00]} 75. Kg4 {[%emt 0:00:04]} Kc5 {[%emt 0:00:00]} 76. Bc4 {[%emt 0:00:05]} Kb6 {[%emt 0:00:00]} 77. Bf1 {[%emt 0:00:20]} Kc5 {[%emt 0:00:00]} 78. Kh3 {[%emt 0:00:26]} Kb6 {[%emt 0:00:00]} 79. Be2 {[%emt 0:00:23]} Kc5 {[%emt 0:00:00]} 80. Bd3 {[%emt 0:00:17]} Kb6 {[%emt 0:00:00]} 81. Kg4 {[%emt 0:01:24]} Kc5 {[%emt 0:00:00]} 82. Bf1 {[%emt 0:02:03]} Kb6 {[%emt 0:00:00]} 83. Kxg5 {[%emt 0:00:11]} h3 {[%emt 0:00:00]} 84. Kg4 {[%emt 0:00:28]} h2 {[%emt 0:00:00]} 85. Bg2 {[%emt 0:00:08]} Kxb5 {[%emt 0:00:00]} 86. Kg3 {[%emt 0:00:02]} h1=Q {[%emt 0:13:00]} 87. Bxh1 1/2-1/2